bitfinex-derivatives/quotes_BTCF0:USTF0_20250830
["timestamp","ask_amount","ask_price","bid_price","bid_amount"]
[1756525225326,0.01881205,108390.0,108380.0,0.0967545]
[1756525225521,0.01881205,108390.0,108380.0,0.45177863]
[1756525226118,0.01881205,108390.0,108380.0,1.32229863]
[1756525227225,0.02081205,108390.0,108380.0,1.32229863]
[1756525227824,0.01981205,108390.0,108380.0,1.32229863]
[1756525228226,0.51756454,108390.0,108380.0,1.22984413]
[1756525228525,0.03732,108380.0,108370.0,0.88916597]
[1756525228829,0.06192,108380.0,108370.0,1.2486901]
[1756525229126,0.06192,108380.0,108370.0,1.3409531]
[1756525229729,0.06192,108380.0,108370.0,0.3783701]
[1756525229928,0.42272,108380.0,108370.0,0.3803701]
[1756525231321,0.77774413,108380.0,108370.0,0.01984597]
[1756525231523,0.77874413,108380.0,108370.0,0.01884597]
[1756525231726,0.42372,108380.0,108370.0,0.02248597]
[1756525231923,0.42372,108380.0,108370.0,0.3775101]
[1756525232823,0.42372,108380.0,108370.0,0.35866413]
[1756525233129,0.42572,108380.0,108370.0,0.35866413]
[1756525233732,0.42572,108380.0,108370.0,0.00364]
[1756525235024,0.06492,108380.0,108370.0,0.00364]
[1756525235225,0.0276,108380.0,108370.0,0.45092713]
[1756525236420,0.0266,108380.0,108370.0,0.45092713]
[1756525236628,0.3864,108380.0,108370.0,0.45092713]
[1756525236828,0.04933,108380.0,108370.0,0.45092713]
[1756525237026,0.08161,108380.0,108370.0,0.45092713]
[1756525237420,0.08161,108380.0,108370.0,0.81172713]
[1756525238432,0.03228,108380.0,108370.0,0.81172713]
[1756525238729,0.50099996,108390.0,108380.0,0.1252945]
[1756525238730,0.12314996,108390.0,108380.0,0.1252945]
[1756525238935,0.12314996,108390.0,108380.0,1.36869045]
[1756525239430,0.17247996,108390.0,108380.0,1.36869045]
[1756525240330,0.17247996,108390.0,108380.0,0.40655595]
[1756525242024,0.53327996,108390.0,108380.0,0.40655595]
[1756525242224,0.53327996,108390.0,108380.0,1.27627595]
[1756525243032,0.53327996,108390.0,108380.0,1.30285595]
[1756525243532,0.53327996,108390.0,108380.0,0.43313595]
[1756525244642,0.53327996,108390.0,108380.0,0.07811182]
[1756525244830,0.53327996,108390.0,108380.0,1.30269595]
[1756525245643,0.53327996,108390.0,108380.0,0.43313595]
[1756525245936,0.12314996,108390.0,108380.0,1.30261595]
[1756525246137,0.12314996,108390.0,108380.0,0.94759182]
[1756525246327,0.12314996,108390.0,108380.0,1.30261595]
[1756525246533,0.53327996,108390.0,108380.0,1.30253595]
[1756525246731,0.53327996,108390.0,108380.0,0.01849182]
[1756525246732,1.13930409,108390.0,108380.0,0.01849182]
[1756525246941,0.08161,108380.0,108370.0,0.03304]
[1756525247233,0.44241,108380.0,108370.0,0.03304]
[1756525247438,0.79743413,108380.0,108370.0,0.03304]
[1756525248035,0.04933,108370.0,108360.0,1.25160079]
[1756525250334,0.41013,108380.0,108370.0,0.05962]
[1756525250533,0.41013,108380.0,108370.0,0.41464413]
[1756525250534,0.08161,108380.0,108370.0,0.41464413]
[1756525251031,0.08161,108380.0,108370.0,0.05962]
[1756525251230,0.08161,108380.0,108370.0,0.41464413]
[1756525251532,0.44241,108380.0,108370.0,1.28380413]
[1756525251736,0.44241,108380.0,108370.0,1.28376413]
[1756525251936,0.44341,108380.0,108370.0,1.28376413]
[1756525252636,0.08261,108380.0,108370.0,1.28376413]
[1756525253342,0.08461,108380.0,108370.0,1.28376413]
[1756525254541,0.44541,108380.0,108370.0,1.28376413]
[1756525255445,0.08461,108380.0,108370.0,1.28376413]
[1756525255740,0.08461,108380.0,108370.0,0.92874]
[1756525255944,0.44541,108380.0,108370.0,1.28376413]
[1756525256244,0.08461,108380.0,108370.0,1.28376413]
[1756525257039,0.08461,108380.0,108370.0,0.92874]
[1756525257347,0.44541,108380.0,108370.0,1.28376413]
[1756525258845,0.003,108380.0,108370.0,1.98682743]
[1756525259244,0.003,108380.0,108370.0,1.73682743]
[1756525259852,0.003,108380.0,108370.0,1.73646743]
[1756525260951,0.001,108380.0,108370.0,1.73746743]
[1756525261353,0.07205791,108390.0,108380.0,0.0922548]
[1756525261554,0.42912676,108410.0,108380.0,1.23827866]
[1756525261854,0.4847667,108410.0,108400.0,0.05653]
[1756525262059,0.4847667,108410.0,108400.0,0.41155413]
[1756525262247,0.46130676,108410.0,108400.0,0.41155413]
[1756525262651,0.53655413,108410.0,108400.0,0.41155413]
[1756525263155,0.53955413,108410.0,108400.0,0.41155413]
[1756525264254,0.54055413,108410.0,108400.0,0.41155413]
[1756525264861,0.53955413,108410.0,108400.0,0.41155413]
[1756525265452,0.53655413,108410.0,108400.0,0.41155413]
[1756525265651,0.53855413,108410.0,108400.0,0.41155413]
[1756525266659,0.53855413,108410.0,108400.0,0.43009017]
[1756525267059,0.53855413,108410.0,108400.0,0.07506604]
[1756525267258,0.89357826,108410.0,108400.0,0.01853604]
[1756525267566,1.14357826,108410.0,108400.0,0.01853604]
[1756525267765,1.14357826,108410.0,108380.0,0.6009156]
[1756525267957,0.03218,108390.0,108380.0,0.43019973]
[1756525268156,0.082,108390.0,108380.0,0.43019973]
[1756525269261,0.082,108390.0,108380.0,0.0751756]
[1756525269461,0.082,108390.0,108380.0,0.43019973]
[1756525269656,0.082,108390.0,108380.0,0.0751756]
[1756525269857,0.082,108390.0,108380.0,0.43019973]
[1756525271550,0.082,108390.0,108380.0,0.0751756]
[1756525271755,0.082,108390.0,108380.0,0.43019973]
[1756525272362,0.43702413,108390.0,108380.0,0.05653]
[1756525272564,0.43702413,108390.0,108380.0,0.03078]
[1756525272565,0.79782413,108390.0,108380.0,0.03078]
[1756525272762,1.04782413,108390.0,108370.0,0.04381]
[1756525272960,0.79782413,108380.0,108370.0,0.07459]
[1756525273262,0.03218,108380.0,108370.0,0.42961413]
[1756525273759,0.082,108380.0,108370.0,0.42961413]
[1756525274666,0.082,108380.0,108370.0,0.07459]
[1756525274869,0.082,108380.0,108370.0,0.42961413]
[1756525275263,0.083,108380.0,108370.0,0.42961413]
[1756525275661,0.085,108380.0,108370.0,0.42961413]
[1756525277467,0.085,108380.0,108370.0,0.07459]
[1756525277767,0.085,108380.0,108370.0,0.42961413]
[1756525278168,0.085,108380.0,108370.0,0.07459]
[1756525278368,0.085,108380.0,108370.0,0.42961413]
[1756525279068,0.085,108380.0,108370.0,0.07459]
[1756525279468,0.085,108380.0,108370.0,0.42961413]
[1756525283969,0.61834795,108390.0,108370.0,0.74660413]
[1756525284170,0.03218,108380.0,108370.0,0.74660413]
[1756525284561,0.03218,108380.0,108370.0,0.79355413]
[1756525285263,0.03318,108380.0,108370.0,0.79355413]
[1756525286066,0.002,108380.0,108370.0,0.88581743]
[1756525286462,0.002,108380.0,108370.0,0.43853]
[1756525286666,0.002,108380.0,108370.0,0.79355413]
[1756525286874,0.002,108380.0,108370.0,1.30035413]
[1756525287068,0.41062,108390.0,108370.0,1.25540413]
[1756525287265,0.4428,108390.0,108380.0,0.43275413]
[1756525288470,0.4428,108390.0,108380.0,0.07773]
[1756525288670,0.79782413,108390.0,108380.0,0.07773]
[1756525289073,0.4428,108390.0,108380.0,0.07773]
[1756525289275,0.4428,108390.0,108380.0,0.43275413]
[1756525289976,0.4438,108390.0,108380.0,0.43275413]
[1756525290175,0.4448,108390.0,108380.0,0.43275413]
[1756525290776,0.084,108390.0,108380.0,0.43275413]
[1756525290978,0.083,108390.0,108380.0,0.43275413]
[1756525291472,0.03318,108390.0,108380.0,0.43275413]
[1756525291976,0.03218,108390.0,108380.0,0.43275413]
[1756525292176,0.03318,108390.0,108380.0,0.43275413]
[1756525292571,0.03218,108390.0,108380.0,0.43275413]
[1756525292771,0.03218,108390.0,108380.0,0.43375413]
[1756525293375,0.03218,108390.0,108380.0,0.43475413]
[1756525293579,0.03218,108390.0,108380.0,0.79555413]
[1756525293779,0.03218,108390.0,108380.0,0.44053]
[1756525294073,0.03218,108390.0,108380.0,0.43375413]
[1756525294278,0.08258,108390.0,108380.0,0.43475413]
[1756525294475,0.44338,108390.0,108380.0,0.07973]
[1756525294677,1.04840413,108390.0,108380.0,0.03278]
[1756525294866,1.04840413,108390.0,108380.0,0.07971]
[1756525295072,0.69338,108390.0,108380.0,0.07971]
[1756525295273,1.04840413,108390.0,108380.0,0.07971]
[1756525295682,1.04840413,108390.0,108380.0,0.07871]
[1756525295883,1.05040413,108390.0,108380.0,0.07871]
[1756525296279,1.05040413,108390.0,108380.0,0.07771]
[1756525297182,1.05140413,108390.0,108380.0,0.07771]
[1756525297377,1.05140413,108390.0,108380.0,0.03078]
[1756525297772,1.05140413,108390.0,108380.0,0.07771]
[1756525297976,1.91868413,108390.0,108380.0,0.07771]
[1756525298276,1.66868413,108390.0,108380.0,0.03078]
[1756525298684,1.66868413,108390.0,108370.0,0.42027188]
[1756525298872,1.66868413,108390.0,108370.0,0.45386188]
[1756525298873,0.0504,108380.0,108370.0,0.45386188]
[1756525299080,0.08219,108380.0,108370.0,0.45386188]
[1756525302288,0.08319,108380.0,108370.0,0.45386188]
[1756525303092,0.08319,108380.0,108370.0,1.32094188]
[1756525303684,0.08319,108380.0,108370.0,0.45386188]
[1756525304185,0.001,108380.0,108370.0,0.45386188]
[1756525304390,0.001,108380.0,108370.0,0.90692508]
[1756525304578,0.001,108380.0,108370.0,0.81466188]
[1756525305589,0.03279,108380.0,108370.0,0.45963775]
[1756525305791,0.03279,108380.0,108370.0,0.81466188]
[1756525306089,0.46326007,108390.0,108380.0,0.08052]
[1756525306289,0.46326007,108390.0,108380.0,0.43554413]
[1756525306690,0.05206007,108390.0,108380.0,0.43554413]
[1756525307793,0.05306007,108390.0,108380.0,0.43554413]
[1756525308291,0.10346007,108390.0,108380.0,0.43554413]
[1756525308781,0.10246007,108390.0,108380.0,0.43554413]
[1756525308985,0.10346007,108390.0,108380.0,0.43554413]
[1756525309289,0.10346007,108390.0,108380.0,0.43654413]
[1756525309490,0.05306007,108390.0,108380.0,0.08152]
[1756525309790,0.05306007,108390.0,108380.0,0.43654413]
[1756525309990,0.05306007,108390.0,108380.0,0.08152]
[1756525310191,0.10346007,108390.0,108380.0,0.43654413]
[1756525310687,0.10246007,108390.0,108380.0,0.43754413]
[1756525313790,0.05206007,108390.0,108380.0,0.43754413]
[1756525313994,0.05206007,108390.0,108380.0,0.79834413]
[1756525314188,0.05206007,108390.0,108380.0,0.44332]
[1756525314391,0.02027007,108390.0,108380.0,0.89059883]
[1756525315292,0.02027007,108390.0,108380.0,0.79834413]
[1756525316495,0.02027007,108390.0,108380.0,1.66498413]
[1756525319800,0.02027007,108390.0,108380.0,0.79834413]
[1756525319993,0.02027007,108390.0,108380.0,1.75707883]
[1756525320190,0.02027007,108390.0,108380.0,2.00707883]
[1756525320596,0.02082088,108400.0,108390.0,0.52779033]
[1756525320790,0.02082088,108400.0,108390.0,0.88859033]
[1756525320995,0.02082088,108400.0,108390.0,1.49361446]
[1756525321299,0.02082088,108400.0,108390.0,1.51239903]
[1756525322492,0.02182088,108400.0,108390.0,1.51239903]
[1756525323898,0.09375413,108410.0,108400.0,0.1711277]
[1756525324199,0.09375413,108410.0,108400.0,0.88695183]
[1756525326794,0.01131413,108410.0,108400.0,1.13695183]
[1756525326996,0.8096812,108430.0,108410.0,0.0922281]
[1756525327192,0.7625912,108430.0,108410.0,1.22688]
[1756525327396,0.8096812,108430.0,108420.0,0.35502413]
[1756525328297,0.8116812,108430.0,108420.0,0.35502413]
[1756525328804,0.8106812,108430.0,108420.0,0.35502413]
[1756525328995,0.8126812,108430.0,108420.0,0.35502413]
[1756525329301,0.8136812,108430.0,108420.0,0.35502413]
[1756525329803,0.88887043,108430.0,108420.0,0.35502413]
[1756525330500,0.51753923,108430.0,108420.0,0.37389769]
[1756525330798,0.03046,108410.0,108400.0,0.01875032]
[1756525331003,0.04709,108400.0,108390.0,1.2396887]
[1756525331297,1.04337413,108400.0,108390.0,0.01878457]
[1756525331697,0.68835,108400.0,108390.0,0.01878457]
[1756525332604,0.68835,108400.0,108390.0,0.01978457]
[1756525332806,0.68835,108400.0,108390.0,0.02078457]
[1756525333101,0.68835,108400.0,108390.0,0.3748087]
[1756525333303,0.69035,108400.0,108390.0,0.3748087]
[1756525333500,0.69135,108400.0,108390.0,0.3738087]
[1756525334606,0.69135,108400.0,108390.0,0.01878457]
[1756525336101,0.33055,108400.0,108390.0,0.01878457]
[1756525336310,0.33055,108400.0,108390.0,0.3738087]
[1756525338504,0.33055,108400.0,108390.0,0.3741187]
[1756525338700,0.33055,108400.0,108390.0,0.3743087]
[1756525339304,0.33055,108400.0,108390.0,0.01928457]
[1756525339499,0.33055,108400.0,108390.0,0.01878457]
[1756525341310,0.68557413,108400.0,108390.0,0.01878457]
[1756525341814,0.68557413,108400.0,108390.0,0.01909457]
[1756525342006,0.68557413,108400.0,108390.0,0.01928457]
[1756525342205,0.33055,108400.0,108390.0,0.3743087]
[1756525343110,0.33055,108400.0,108390.0,0.01928457]
[1756525343811,0.33055,108400.0,108390.0,0.3743087]
[1756525346310,0.32955,108400.0,108390.0,0.3743087]
[1756525346709,0.32955,108400.0,108390.0,0.01928457]
[1756525346904,0.32955,108400.0,108390.0,0.3743087]
[1756525347311,0.07955,108400.0,108390.0,0.3743087]
[1756525348314,0.07755,108400.0,108390.0,0.3743087]
[1756525349015,0.07755,108400.0,108390.0,0.3753087]
[1756525349711,0.07755,108400.0,108390.0,0.3763087]
[1756525351016,0.07755,108400.0,108390.0,0.88636457]
[1756525351324,0.43257413,108400.0,108390.0,0.02109457]
[1756525351519,0.79337413,108400.0,108390.0,0.002]
[1756525352021,0.79337413,108400.0,108390.0,0.001]
[1756525352216,0.03046,108400.0,108380.0,1.55618413]
[1756525352416,0.04683,108390.0,108380.0,1.55618413]
[1756525352618,0.04683,108390.0,108380.0,1.64843883]
[1756525353515,0.04683,108390.0,108380.0,1.64943883]
[1756525354717,0.07139977,108390.0,108380.0,1.64943883]
[1756525355121,0.07139977,108390.0,108380.0,1.64843883]
[1756525356021,0.10373977,108390.0,108380.0,0.3608]
[1756525356214,0.10373977,108390.0,108380.0,1.58066413]
[1756525359316,0.10373977,108390.0,108380.0,1.58058413]
[1756525359718,0.10373977,108390.0,108380.0,1.22556]
[1756525359921,0.10373977,108390.0,108380.0,1.58058413]
[1756525362024,0.10373977,108390.0,108380.0,1.22556]
[1756525362225,0.10373977,108390.0,108380.0,1.58058413]
[1756525362821,0.10373977,108390.0,108380.0,1.58042413]
[1756525363124,0.10373977,108390.0,108380.0,1.58034413]
[1756525364026,0.10373977,108390.0,108380.0,0.71582413]
[1756525364225,0.10373977,108390.0,108380.0,1.58030413]
[1756525365230,0.10373977,108390.0,108380.0,1.67255883]
[1756525365428,0.05690977,108390.0,108380.0,1.67255883]
[1756525366728,0.05690977,108390.0,108380.0,1.67355883]
[1756525367433,0.05690977,108390.0,108380.0,1.3195347]
[1756525367627,0.10373977,108390.0,108380.0,1.67455883]
[1756525368428,0.10373977,108390.0,108380.0,1.58230413]
[1756525369729,0.05690977,108390.0,108380.0,1.67355873]
[1756525370029,0.31129053,108410.0,108390.0,0.03215]
[1756525370230,0.03234,108400.0,108390.0,0.41901413]
[1756525370532,0.05672428,108400.0,108390.0,0.41901413]
[1756525370732,0.30672428,108400.0,108390.0,0.41901413]
[1756525372233,0.35355428,108400.0,108390.0,0.41901413]
[1756525375528,0.05672428,108400.0,108390.0,0.87206023]
[1756525375726,0.05672428,108400.0,108390.0,0.89050029]
[1756525376128,0.05672428,108400.0,108390.0,1.24552442]
[1756525376428,0.02438428,108400.0,108390.0,0.89050029]
[1756525376628,0.0674192,108410.0,108390.0,0.85866029]
[1756525376827,0.0997592,108410.0,108400.0,0.43278413]
[1756525377633,0.0997592,108410.0,108400.0,0.07776]
[1756525377933,0.0997592,108410.0,108400.0,0.43278413]
[1756525379134,0.12400772,108410.0,108400.0,0.43278413]
[1756525380136,0.12400772,108410.0,108400.0,0.07776]
[1756525380436,0.12400772,108410.0,108400.0,0.43278413]
[1756525381636,0.12400772,108410.0,108400.0,0.07776]
[1756525384535,0.47903185,108410.0,108400.0,0.07776]
[1756525385839,0.48103185,108410.0,108400.0,0.07776]
[1756525386237,0.12600772,108410.0,108400.0,0.07776]
[1756525386741,0.12700772,108410.0,108400.0,0.07776]
[1756525386942,0.12500772,108410.0,108400.0,0.07776]
[1756525387139,0.12500772,108410.0,108400.0,0.43278413]
[1756525387440,0.47904648,108410.0,108400.0,0.43279876]
[1756525388134,0.47904648,108410.0,108400.0,0.07776]
[1756525388335,0.12400772,108410.0,108400.0,0.43279876]
[1756525388536,0.47904648,108410.0,108400.0,0.43279876]
[1756525388835,0.47904648,108410.0,108400.0,0.78783752]
[1756525390142,0.12400772,108410.0,108400.0,0.78783752]
[1756525390344,0.47904648,108410.0,108400.0,0.78783752]
[1756525392045,0.12400772,108410.0,108400.0,0.78783752]
[1756525392336,0.47904648,108410.0,108400.0,0.43279876]
[1756525393238,0.47904648,108410.0,108400.0,0.78783752]
[1756525394346,0.12400772,108410.0,108400.0,0.78783752]
[1756525394937,0.47904648,108410.0,108400.0,0.78783752]
[1756525395237,0.47904648,108410.0,108400.0,0.07776]
[1756525395438,0.47904648,108410.0,108400.0,0.78783752]
[1756525396546,0.47904648,108410.0,108400.0,0.07776]
[1756525396738,0.47904648,108410.0,108400.0,0.78783752]
[1756525398243,0.50230993,108410.0,108400.0,0.78783752]
[1756525398550,0.50230993,108410.0,108400.0,0.43279876]
[1756525400146,0.14727117,108410.0,108400.0,0.43279876]
[1756525400448,0.50230993,108410.0,108400.0,0.43279876]
[1756525400747,0.86310993,108410.0,108400.0,0.43279876]
[1756525402250,0.50230993,108410.0,108400.0,0.43279876]
[1756525404648,0.14727117,108410.0,108400.0,0.43279876]
[1756525404853,0.50230993,108410.0,108400.0,0.43279876]
[1756525406351,0.50230993,108410.0,108400.0,0.07776]
[1756525406548,0.50230993,108410.0,108400.0,0.78783752]
[1756525407351,0.50230993,108410.0,108400.0,0.07776]
[1756525407552,0.50230993,108410.0,108400.0,0.78783752]
[1756525408250,0.47904648,108410.0,108400.0,0.78783752]
[1756525408441,0.47904648,108410.0,108400.0,0.43279876]
[1756525409850,1.44488524,108410.0,108390.0,0.06356006]
[1756525410050,0.78942752,108400.0,108390.0,0.44854882]
[1756525410652,0.43438876,108400.0,108390.0,0.44854882]
[1756525411748,0.07935,108400.0,108390.0,0.44854882]
[1756525412046,0.43438876,108400.0,108390.0,0.44854882]
[1756525412653,0.07935,108400.0,108390.0,0.44854882]
[1756525412854,0.12409772,108410.0,108400.0,0.07846]
[1756525413053,0.98633772,108410.0,108400.0,0.78853752]
[1756525413449,1.34137648,108410.0,108400.0,0.78853752]
[1756525413649,0.12409772,108410.0,108400.0,0.78853752]
[1756525414555,0.12409772,108410.0,108400.0,0.07846]
[1756525414750,0.47913648,108410.0,108400.0,0.43349876]
[1756525414951,0.83993648,108410.0,108400.0,0.43349876]
[1756525415557,0.83993648,108410.0,108400.0,0.07846]
[1756525415757,0.83993648,108410.0,108400.0,0.43349876]
[1756525416149,1.70205648,108410.0,108400.0,0.43349876]
[1756525416456,1.70305648,108410.0,108400.0,0.38582876]
[1756525416655,1.70505648,108410.0,108400.0,0.38582876]
[1756525416857,1.70501648,108410.0,108400.0,0.43349876]
[1756525417950,1.34417648,108410.0,108400.0,0.43349876]
[1756525418254,1.34417648,108410.0,108400.0,0.78853752]
[1756525419358,1.34217648,108410.0,108400.0,0.78853752]
[1756525419755,1.70297648,108410.0,108400.0,0.78853752]
[1756525420054,1.70197648,108410.0,108400.0,0.78853752]
[1756525420254,1.34117648,108410.0,108400.0,0.07846]
[1756525420453,1.34117648,108410.0,108400.0,0.43349876]
[1756525420758,1.70197648,108410.0,108400.0,0.43349876]
[1756525421358,1.34693772,108410.0,108400.0,0.43349876]
[1756525421558,1.70197648,108410.0,108400.0,0.43349876]
[1756525422352,1.70197648,108410.0,108400.0,0.38582876]
[1756525423472,1.70197648,108410.0,108400.0,0.43349876]
[1756525424371,1.34117648,108410.0,108400.0,0.43349876]
[1756525424769,1.70197648,108410.0,108400.0,0.43349876]
[1756525426765,1.70197648,108410.0,108400.0,0.38582876]
[1756525427768,1.70197648,108410.0,108400.0,0.03079]
[1756525428275,1.70197648,108410.0,108400.0,0.38582876]
[1756525428574,1.70297648,108410.0,108400.0,0.38582876]
[1756525428970,1.65581648,108410.0,108390.0,0.37347882]
[1756525429275,1.29585876,108400.0,108390.0,0.09690006]
[1756525429477,0.07926,108400.0,108390.0,0.45193882]
[1756525430468,0.43429876,108400.0,108390.0,0.45193882]
[1756525433479,0.07926,108400.0,108390.0,0.45193882]
[1756525433778,0.43429876,108400.0,108390.0,0.45193882]
[1756525434473,0.43429876,108400.0,108390.0,0.09690006]
[1756525434670,0.43429876,108400.0,108390.0,0.45193882]
[1756525438074,0.07926,108400.0,108390.0,0.45193882]
[1756525438380,0.43429876,108400.0,108390.0,0.45193882]
[1756525439978,0.24667594,108400.0,108390.0,0.45193882]
[1756525440179,0.38513876,108400.0,108390.0,0.45193882]
[1756525440976,0.0301,108400.0,108390.0,0.45193882]
[1756525442072,0.0695,108400.0,108390.0,0.45193882]
[1756525442571,1.26683772,108410.0,108400.0,0.08048]
[1756525442572,1.33274648,108410.0,108400.0,0.08048]
[1756525442884,1.71689216,108410.0,108400.0,0.43551876]
[1756525443173,1.35609216,108410.0,108400.0,0.43551876]
[1756525443477,1.33274648,108410.0,108400.0,0.08048]
[1756525443674,1.33274648,108410.0,108400.0,0.43551876]
[1756525443973,0.97770772,108410.0,108400.0,0.43551876]
[1756525444174,1.33274648,108410.0,108400.0,0.43551876]
[1756525444573,0.47174648,108410.0,108400.0,0.43551876]
[1756525444775,0.47174648,108410.0,108400.0,0.79055752]
[1756525445172,0.11670772,108410.0,108400.0,1.13279532]
[1756525445378,0.04483772,108410.0,108400.0,1.99367532]
[1756525446378,0.08423772,108410.0,108400.0,1.90143752]
[1756525446779,0.43927648,108410.0,108400.0,1.04055752]
[1756525446979,0.47174648,108410.0,108400.0,0.43651876]
[1756525447179,0.47174648,108410.0,108400.0,0.03274]
[1756525447377,0.47174648,108410.0,108400.0,0.38777876]
[1756525447578,0.47174648,108410.0,108400.0,0.38877876]
[1756525447780,0.47174648,108410.0,108400.0,0.43751876]
[1756525448381,1.08254648,108410.0,108400.0,0.03374]
[1756525448788,1.08254648,108410.0,108400.0,0.03274]
[1756525449089,1.04314648,108410.0,108390.0,0.42221882]
[1756525449293,0.07187,108400.0,108390.0,0.4540337]
[1756525450188,0.07187,108400.0,108390.0,0.4550337]
[1756525450385,0.07187,108400.0,108390.0,0.4560337]
[1756525452190,1.33810772,108410.0,108400.0,0.08048]
[1756525452391,0.93247,108410.0,108400.0,0.08048]
[1756525452790,1.29327,108410.0,108400.0,0.08048]
[1756525452993,1.31346511,108410.0,108400.0,0.08048]
[1756525453590,0.95266511,108410.0,108400.0,0.08048]
[1756525455289,1.31338511,108410.0,108400.0,0.08048]
[1756525455490,0.95258511,108410.0,108400.0,0.08048]
[1756525455998,0.49793576,108410.0,108400.0,0.08048]
[1756525456188,0.99757576,108410.0,108400.0,0.43559364]
[1756525456793,0.99757576,108410.0,108400.0,0.79639364]
[1756525457093,0.13713576,108410.0,108400.0,0.79639364]
[1756525457288,0.09773576,108410.0,108400.0,0.79639364]
[1756525458391,0.09773576,108410.0,108400.0,0.79739364]
[1756525458791,0.13782576,108410.0,108400.0,0.79739364]
[1756525459600,0.13782576,108410.0,108400.0,0.79839364]
[1756525460189,0.13782576,108410.0,108400.0,0.44228]
[1756525460490,0.13782576,108410.0,108400.0,0.79839364]
[1756525460891,0.13782576,108410.0,108400.0,0.79739364]
[1756525461193,0.09773576,108410.0,108400.0,0.79839364]
[1756525462692,0.13782576,108410.0,108400.0,0.79839364]
[1756525462893,0.09773576,108410.0,108400.0,0.79839364]
[1756525463190,0.13782576,108410.0,108400.0,0.79839364]
[1756525464492,0.09773576,108410.0,108400.0,0.79839364]
[1756525471303,0.09773576,108410.0,108400.0,1.15329552]
[1756525471900,0.06526576,108410.0,108400.0,1.15329552]
[1756525473705,0.06526576,108410.0,108400.0,1.24553352]
[1756525475008,0.06526576,108410.0,108400.0,0.535518]
[1756525475205,0.06526576,108410.0,108400.0,1.24553352]
[1756525483017,0.06526576,108410.0,108400.0,2.10477352]
[1756525486622,0.06526576,108410.0,108400.0,2.46557352]
[1756525487615,0.06526576,108410.0,108400.0,2.46529352]
[1756525497834,0.06526576,108410.0,108400.0,2.48433843]
[1756525500840,0.06526576,108410.0,108400.0,1.53314043]
[1756525501139,0.06526576,108410.0,108400.0,2.39142043]
[1756525502140,0.10299576,108410.0,108400.0,2.39138043]
[1756525502740,0.06526576,108410.0,108400.0,2.39138043]
[1756525503139,0.06526576,108410.0,108400.0,2.48361833]
[1756525510436,0.06526576,108410.0,108400.0,1.77360281]
[1756525510638,0.06526576,108410.0,108400.0,2.48361833]
[1756525510835,0.45073352,108410.0,108400.0,0.82312491]
[1756525511038,0.48846352,108410.0,108400.0,2.03589267]
[1756525511241,0.48846352,108410.0,108400.0,2.39090043]
[1756525511639,0.48846352,108410.0,108400.0,2.03589267]
[1756525511840,0.13345576,108410.0,108400.0,2.03589267]
[1756525512041,0.48846352,108410.0,108400.0,2.03589267]
[1756525512346,0.48846352,108410.0,108400.0,1.17813267]
[1756525512550,0.48846352,108410.0,108400.0,2.03589267]
[1756525512741,0.48846352,108410.0,108400.0,1.68084491]
[1756525512943,0.48846352,108410.0,108400.0,1.6618]
[1756525513545,0.48846352,108410.0,108400.0,1.66176]
[1756525513941,0.48846352,108410.0,108400.0,2.01676776]
[1756525514148,0.48846352,108410.0,108400.0,2.01576776]
[1756525514340,0.48846352,108410.0,108400.0,2.01676776]
[1756525514742,0.48846352,108410.0,108400.0,2.01576776]
[1756525515238,0.48846352,108410.0,108400.0,2.01476776]
[1756525515447,0.48846352,108410.0,108400.0,2.01576776]
[1756525516146,0.48846352,108410.0,108400.0,2.01476776]
[1756525516948,0.45073352,108410.0,108400.0,1.15708776]
[1756525517146,0.45073352,108410.0,108400.0,2.01460776]
[1756525517346,0.45077493,108410.0,108400.0,1.6596]
[1756525517746,0.48850493,108410.0,108400.0,1.6596]
[1756525518347,0.48850493,108410.0,108400.0,0.80408]
[1756525518650,0.73850493,108410.0,108400.0,1.66152]
[1756525519153,0.73850493,108410.0,108400.0,0.80408]
[1756525519946,0.73850493,108410.0,108400.0,0.80308]
[1756525520650,0.57329478,108410.0,108400.0,0.80208]
[1756525522454,0.57329478,108410.0,108400.0,1.6594]
[1756525522648,0.61169635,108410.0,108400.0,1.6594]
[1756525523147,0.61169635,108410.0,108400.0,0.80208]
[1756525523347,0.61169635,108410.0,108400.0,1.65932]
[1756525525948,0.42660805,108410.0,108400.0,1.65932]
[1756525526352,0.05887241,108410.0,108400.0,2.10660707]
[1756525526549,0.05887241,108410.0,108400.0,2.01436917]
[1756525526747,0.03840157,108410.0,108400.0,2.10660707]
[1756525526948,1.7078984,108430.0,108400.0,2.05786707]
[1756525527152,1.85133464,108430.0,108420.0,0.07598]
[1756525527954,1.6530654,108430.0,108420.0,0.07598]
[1756525528155,0.8133054,108430.0,108420.0,0.07598]
[1756525528451,1.6723054,108430.0,108420.0,0.07598]
[1756525528656,1.6733054,108430.0,108420.0,0.07598]
[1756525529958,1.71159962,108430.0,108420.0,0.07598]
[1756525530754,2.07239962,108430.0,108420.0,0.07598]
[1756525531761,2.14617993,108430.0,108420.0,0.07598]
[1756525537363,1.79113076,108430.0,108420.0,0.07598]
[1756525537662,2.14573993,108430.0,108420.0,0.07598]
[1756525538066,0.92837993,108430.0,108420.0,0.07598]
[1756525538263,1.68493993,108430.0,108420.0,0.07598]
[1756525538660,0.82837993,108430.0,108420.0,0.07598]
[1756525538963,1.68485993,108430.0,108420.0,0.07598]
[1756525539161,1.78485993,108430.0,108420.0,0.07598]
[1756525539966,1.68485993,108430.0,108420.0,0.07598]
[1756525540165,1.78485993,108430.0,108420.0,0.07598]
[1756525540465,1.78481993,108430.0,108420.0,0.07598]
[1756525540865,1.68481993,108430.0,108420.0,0.07598]
[1756525541066,1.78481993,108430.0,108420.0,0.07598]
[1756525541259,1.78472853,108430.0,108420.0,0.43093777]
[1756525541465,1.68472853,108430.0,108420.0,0.07598]
[1756525541666,1.68472853,108430.0,108420.0,0.43093777]
[1756525541864,1.68468853,108430.0,108420.0,0.43093777]
[1756525542065,1.78468853,108430.0,108420.0,0.43093777]
[1756525542266,0.92828853,108430.0,108420.0,0.43093777]
[1756525542468,1.68460853,108430.0,108420.0,0.43093777]
[1756525543066,1.78460853,108430.0,108420.0,0.43093777]
[1756525543369,1.78360853,108430.0,108420.0,0.43093777]
[1756525543769,1.78356853,108430.0,108420.0,0.43093777]
[1756525543969,1.78348853,108430.0,108420.0,0.43093777]
[1756525544170,1.68348853,108430.0,108420.0,0.43093777]
[1756525544369,1.68148853,108430.0,108420.0,0.43093777]
[1756525545067,1.78148853,108430.0,108420.0,0.43093777]
[1756525548074,0.82528853,108430.0,108420.0,0.07598]
[1756525548369,1.65814283,108430.0,108420.0,0.79173777]
[1756525549174,0.23236507,108430.0,108420.0,0.79173777]